Cogmind - Beta 16 @@@ ROGUE MODE // 2025.12.27 @ 23:38:45 Player: naththebg Result: Destroyed by JH-IE8(R) with Subdweller Laser Performance ------------- Evolutions (0) 0 Regions Visited (3) 600 Robots Destroyed (15) 75 Value Destroyed (345) 345 Prototype IDs (2) 40 Alien Tech Used (0) 0 Bonus (0) 0 TOTAL SCORE: 1060 Bonus ------- None Cogmind --------- Core Integrity 0/250 Matter 268/300 Energy 77/100 System Corruption 3% Temperature Cool (6) Movement Walking (120) Location -10/Subcaves Parts ------- > --- POWER (1) -------- (None) > --- PROPULSION (2) --- Carbon-fiber Leg Carbon-fiber Leg > --- UTILITY (2) ------ Heat Sink Medium Storage Unit > --- WEAPON (2) ------- Subdweller Beam Cannon Battle Cannon > --- INVENTORY (10) --- Light Treads Subdweller Monowheel Large Storage Unit High-capacity Matter Pod (200) Subdweller Optics Makeshift Light Armor Plating Subdweller Beam Cannon Battle Rifle Rocket Launcher Scrap Shield Fragment (49) Peak State ------------ > --- POWER ------------ Light Nuclear Core > --- PROPULSION ------- Carbon-fiber Leg Carbon-fiber Leg > --- UTILITY ---------- Heat Sink Large Storage Unit > --- WEAPON ----------- Battle Rifle Battle Cannon > --- INVENTORY -------- Light Treads Aluminum Leg Wheel Compact Wheel Subdweller Monowheel Small Storage Unit Medium Storage Unit High-capacity Matter Pod Makeshift Light Armor Plating Assault Rifle Assault Rifle Rocket Launcher Scrap Shield Fragment [Rating: 16] Favorites ----------- Power Light Nuclear Core Engine Ion Engine Power Core Light Nuclear Core Propulsion Light Treads Treads Light Treads Leg Aluminum Leg Utility Heat Sink Device Heat Sink Storage Large Storage Unit Weapon Medium Laser Energy Gun Medium Laser Energy Cannon Subdweller Beam Cannon Ballistic Gun Assault Rifle Ballistic Cannon Battle Cannon Build | -11 -10 -10 -10 ------- Run | Yrd Mat Min Sub Slots Evolved . | . . . . Power . | . . . . Propulsion . | . . . . Utility . | . . . . Weapon . | . . . . Parts Attached 24 | 6 7 6 5 Power 3 | 1 1 1 . Engine 2 | 1 1 . . Core 1 | . . 1 . Reactor . | . . . . Propulsion 9 | 2 3 1 3 Treads 3 | . 2 1 . Leg 6 | 2 1 . 3 Wheel . | . . . . Hover . | . . . . Flight . | . . . . Utility 4 | 1 3 . . Device 1 | . 1 . . Storage 3 | 1 2 . . Processor . | . . . . Hackware . | . . . . Protection . | . . . . Artifact . | . . . . Weapon 8 | 2 . 4 2 Energy Gun 3 | 2 . 1 . Energy Cannon 1 | . . . 1 Ballistic Gun 3 | . . 2 1 Ballistic Cannon 1 | . . 1 . Launcher . | . . . . Special Weapon . | . . . . Impact Weapon . | . . . . Slashing Weapon . | . . . . Piercing Weapon . | . . . . Special Melee Weapon . | . . . . Unidentified Prototypes . | . . . . Parts Lost 7 | . . 4 3 Power 2 | . . 1 1 Propulsion 2 | . . 1 1 Utility . | . . . . Weapon 3 | . . 2 1 Highest Loss Streak 2 | . . 2 2 To Critical Strikes . | . . . . Average Backups 9 | 4 7 9 10 Power . | . 1 . . Propulsion 4 | 3 3 5 3 Utility 2 | . 1 2 3 Weapon 1 | . 1 1 2 Tool/Special . | . . . . Unused Backups 9 | . 1 . 8 Power . | . . . . Propulsion 4 | . 1 . 3 Utility 3 | . . . 3 Weapon 2 | . . . 2 Tool/Special . | . . . . Average Slot Usage (%) 98 | . 97 98 96 Engine 5 | . 14 3 . Core 7 | . . 9 14 Treads 19 | . 12 27 10 Leg 8 | . 15 . 17 Device 13 | . 12 14 14 Storage 14 | . 14 14 14 Energy Gun 14 | . 28 11 3 Energy Cannon 1 | . . . 5 Ballistic Gun 6 | . . 10 2 Ballistic Cannon 5 | . . 5 14 Peak Build Rating 16 | 6 8 14 16 Average Rating 10 | 3 7 11 14 On Entrance 6 | . 6 8 12 Avg Prop Armor Cover (%) 8 | . . . 8 Naked Turns . | . . . . Heaviest Build 34 | 11 29 33 34 Greatest Support 40 | 20 40 40 40 Greatest Overweight (x) 1 | . . . 1 Average Overweight (x) . | . . . . Largest Inventory Capacity 15 | 8 15 15 15 Average Capacity 13 | 7 10 15 13 Most Carried 15 | 7 9 12 15 Average Carried 9 | 4 7 9 10 Final Capacity 15 | 8 15 15 10 Final Carried 11 | 6 9 11 10 Class Distribution -------------------- 86% | Mutant 13% | Scavenger-Mutant Dominant Class ---------------- Mutant | -10/Materials Mutant | -10/Mines Scavenger-Mutant | -10/Subcaves Resources | -11 -10 -10 -10 ----------- Run | Yrd Mat Min Sub Matter Collected 608 | 217 101 78 212 Remotely . | . . . . Salvage Created 516 | . 280 182 54 Parts 26 | . 12 13 1 Haulers Intercepted 1 | . 1 . . Recyclers Shooed . | . . . . Parts Field Recycled . | . . . . Retrieved Matter . | . . . . Parts Self-Destructed 6 | . . . 6 Prevented . | . . . . Parts Restored . | . . . . Kills | -11 -10 -10 -10 ------- Run | Yrd Mat Min Sub Combat Hostiles Destroyed 21 | . 5 14 2 Guns 19 | . 5 14 . Cannons 2 | . . . 2 Classes Destroyed 6 | . 3 2 1 Tunneler 1 | . 1 . . Hauler 1 | . 1 . . Swarmer 6 | . . 6 . Grunt 5 | . 5 . . Subdweller 2 | . . . 2 Assembled 8 | . . 8 . Best Kill Streak 5 | . 2 5 1 Combat Bots Only 5 | . 2 5 1 Max Kills in Single Turn 2 | . 1 2 1 Gunslinging 1 | . . 1 . Exploded . | . . . . Melee . | . . . . Uniques/NPCs Destroyed . | . . . . Combat | -11 -10 -10 -10 -------- Run | Yrd Mat Min Sub Hostile Shots Fired 95 | . 18 60 17 Missed 23 | . 4 17 2 Hits 72 | . 14 43 15 Melee 13 | . . 13 . Projectile 59 | . 14 30 15 AOE 1 | . . 1 . Critical Strikes 1 | . . . 1 Damage Taken 1145 | . 175 620 350 Core 263 | . 50 86 127 Absorbed by Shields . | . . . . Core Remaining (%) 100 | 100 . . . Volleys Fired 77 | . 22 38 17 Largest 2 | . 2 2 2 Hottest 125 | . 90 125 113 Shots Fired 131 | . 44 57 30 Gun 108 | . 44 55 9 Cannon 23 | . . 2 21 Launcher . | . . . . Special . | . . . . Kinetic 27 | . . 2 25 Thermal 104 | . 44 55 5 Explosive . | . . . . Electromagnetic . | . . . . Robot Hit Streak 13 | . 13 9 13 Robot Miss Streak 5 | . 2 5 1 Penetration Max . | . . . . Secondary Targets 1 | . . 1 . Max Gunslinging Chain 1 | . . 1 . Shots Hit Robots 88 | . 36 31 21 Core Hits 35 | . 16 16 3 Critical Kills . | . . . . Critical Parts Destroyed . | . . . . Critical Strikes 2 | . . 1 1 Burn 1 | . . 1 . Blast 1 | . . . 1 Melee Attacks . | . . . . Impact . | . . . . Slashing . | . . . . Piercing . | . . . . Sneak Attacks . | . . . . Combat Hostiles . | . . . . Follow-up Attacks . | . . . . Damage Inflicted 1377 | . 455 503 419 Guns 986 | . 423 464 99 Cannons 320 | . . . 320 Explosions . | . . . . Melee . | . . . . Ramming 71 | . 32 39 . Kinetic 346 | . . . 346 Thermal 960 | . 423 464 73 Explosive . | . . . . Electromagnetic . | . . . . Impact . | . . . . Slashing . | . . . . Piercing . | . . . . Highest Corruption 3 | . . 3 3 Average Corruption 3 | . . 3 3 Corruption Purged . | . . . . Corruption Blocked . | . . . . Effects 22 | . . 14 8 Message Errors 5 | . . 4 1 Matter Fused 8 | . . 5 3 Heat Flow Errors 3 | . . 1 2 Energy Discharges 3 | . . 2 1 Data Loss (major) 2 | . . 1 1 Alerts 1 | . . 1 . Overload Shots . | . . . . Overflow Damage . | . . . . Projectiles . | . . . . Explosions . | . . . . Melee . | . . . . Knockbacks 3 | . . 1 2 Impact 1 | . . 1 . Kinetic 2 | . . . 2 Secondary . | . . . . Self-Inflicted Damage . | . . . . Shots . | . . . . Rammed 9 | . 3 6 . Targets Rammed 15 | 1 8 6 . Kicked 6 | 1 5 . . Crushed . | . . . . Highest Temperature 268 | . 108 136 268 Average Temperature 51 | . 34 33 126 Received Heat Transfer 500 | . 102 . 398 Siege Activations . | . . . . Martial Activations . | . . . . Shielding Activations . | . . . . Robots Disrupted . | . . . . Combat Hostiles . | . . . . Robots Corrupted . | . . . . Combat Hostiles . | . . . . Parts Fried . | . . . . Impact Corruptions . | . . . . Robots Melted . | . . . . Combat Hostiles . | . . . . Parts Melted . | . . . . Heat Transferred 2352 | . 1140 1101 111 Parts Sabotaged . | . . . . Parts Stolen . | . . . . Parts Stripped . | . . . . Power Chain Reactions . | . . . . Alert | -11 -10 -10 -10 ------- Run | Yrd Mat Min Sub Maximum Alert Level . | . . . . Low Security (%) 100 | 100 100 100 . Level 1 . | . . . . Level 2 . | . . . . Level 3 . | . . . . Level 4 . | . . . . Level 5 . | . . . . High Security . | . . . . Max Security . | . . . . Peak Influence 96 | . 67 96 . Initial 13 | . . 13 . Average 14 | . 18 12 . Influence Increases 321 | . 177 144 . Destroy 0b10 Robot/C 220 | . 100 120 . Destroy 0b10 Robot/NC 10 | . 10 . . Destroy Leader 52 | . 32 20 . Allied During Kill 3 | . . 3 . Successful Hack 5 | . 5 . . Destroy Structure 1 | . . 1 . Lose Combat Pursuer 30 | . 30 . . Influence Decreases 321 | . 142 178 1 Entered New Map 23 | . . 22 1 Time Decay 258 | . 142 116 . Lost Part 20 | . . 20 . Lost Ally 20 | . . 20 . Squads Dispatched 1 | . 1 . . Investigation 1 | . 1 . . Extermination . | . . . . Reinforcement . | . . . . Assault . | . . . . Garrison . | . . . . Intercept . | . . . . Searches Triggered . | . . . . Construction Impeded . | . . . . Haulers Reinforced . | . . . . Active Scanning Responses . | . . . . Cargo Convoy Interrupts . | . . . . Stealth | -11 -10 -10 -10 --------- Run | Yrd Mat Min Sub Distress Signals . | . . . . Communications Jammed . | . . . . Distress Signals . | . . . . Times Spotted 40 | . 7 28 5 Peak Tracking Total 19 | . 3 19 3 Tactical Retreats 4 | . 2 2 . Traps | -11 -10 -10 -10 ------- Run | Yrd Mat Min Sub Traps Triggered 1 | . 1 . . Indirectly . | . . . . Trap Hack Attempts . | . . . . Triggered . | . . . . Disarmed . | . . . . Reprogrammed . | . . . . Reused . | . . . . Traps Extracted . | . . . . Installed . | . . . . Triggered . | . . . . Machines | -11 -10 -10 -10 ---------- Run | Yrd Mat Min Sub Machines Disabled . | . . . . Max in Single Turn . | . . . . Machines Repaired . | . . . . Machines Dismantled . | . . . . Machines Sabotaged . | . . . . Overloaded Fab Kills . | . . . . Hacking | -11 -10 -10 -10 --------- Run | Yrd Mat Min Sub Machines Accessed 1 | . 1 . . Terminals 1 | . 1 . . Fabricators . | . . . . Repair Stations . | . . . . Recycling Units . | . . . . Scanalyzers . | . . . . Garrison Access . | . . . . Total Hacks 3 | . 3 . . Successful 2 | . 2 . . Failed 1 | . 1 . . Catastrophic . | . . . . Database Lockouts . | . . . . Manual 2 | . 2 . . Terminals 3 | . 3 . . Fabricators . | . . . . Repair Stations . | . . . . Recycling Units . | . . . . Scanalyzers . | . . . . Garrison Access . | . . . . Terminal Hacks 1 | . 1 . . Prototype ID Bank 1 | . 1 . . Fabricator Hacks . | . . . . Repair Station Hacks . | . . . . Recycling Unit Hacks . | . . . . Scanalyzer . | . . . . Garrison Access Hacks . | . . . . Unauthorized Hacks 1 | . 1 . . Terminals 1 | . 1 . . Botnet 1 | . 1 . . Fabricators . | . . . . Repair Stations . | . . . . Recycling Units . | . . . . Scanalyzers . | . . . . Garrison Access . | . . . . Data Cores Recovered . | . . . . Used . | . . . . Hacking Detections 1 | . 1 . . Full Trace Events . | . . . . Feedback Events . | . . . . Feedback Blocked . | . . . . Robot Schematics Acquired . | . . . . Robots Built . | . . . . Authchips . | . . . . Time . | . . . . Total Robot Build Rating . | . . . . Part Schematics Acquired . | . . . . Parts Built . | . . . . Authchips . | . . . . Time . | . . . . Total Part Build Rating . | . . . . Part Studies Acquired . | . . . . Parts Repaired . | . . . . Time . | . . . . Parts Recycled . | . . . . Recycled Matter . | . . . . Retrieved Matter . | . . . . Retrieved Components . | . . . . Parts Scanalyzed . | . . . . Part Schematics Acquired . | . . . . Parts Damaged . | . . . . Bothacking | -11 -10 -10 -10 ------------ Run | Yrd Mat Min Sub Used RIF Installer . | . . . . Robots Hacked . | . . . . Non-combat . | . . . . Combat . | . . . . Robot Hacks Applied . | . . . . Relay Couplers Released . | . . . . Fabnet Peak Effective % . | . . . . Robots Rewired . | . . . . Allies Hacked . | . . . . Hacks Repelled . | . . . . Allies | -11 -10 -10 -10 -------- Run | Yrd Mat Min Sub Total Allies 1 | . . 1 . Largest Group 1 | . . 1 . Highest-Rated Group 31 | . . 31 . Highest-Rated Ally 31 | . . 31 . Total Orders . | . . . . Ally Attacks 4 | . . 4 . Total Damage 41 | . . 41 . Kills . | . . . . Allies Corrupted . | . . . . Allies Melted . | . . . . Intel | -11 -10 -10 -10 ------- Run | Yrd Mat Min Sub Active Infowar (turns) . | . . . . Robot Analysis Total . | . . . . Derelict Logs Recovered 2 | . . 1 1 Drone Launches . | . . . . Drone Recoveries . | . . . . Exploration | -11 -10 -10 -10 ------------- Run | Yrd Mat Min Sub Turns Passed 1945 | 58 521 956 410 Spaces Moved 1072 | 41 288 518 225 Core 12 | 12 . . . Treads 701 | . 110 518 73 Legs 359 | 29 178 . 152 Wheels . | . . . . Hover . | . . . . Flight . | . . . . Fastest Speed 50 | 50 120 160 120 Average Speed 147 | 99 135 160 144 Slowest Speed 240 | 120 160 160 240 Overloaded Moves . | . . . . Propulsion Burnouts . | . . . . Robots Hopped . | . . . . Potential Cave-ins . | . . . . Cave-ins Triggered . | . . . . Exploration Rate (%) 30 | 4 28 76 12 Regions Visited 3 Branch Regions 2 Pre-discovered Areas 1 | . . . 1 Known Exits Taken . | . . . . Unknown Exits Taken 3 | 1 1 1 . Scrap Searched 9 | . . 2 7 Spaces Dug . | . . . . Terrain Destroyed 1 | . . 1 . Melee . | . . . . Projectile 1 | . . 1 . AOE . | . . . . Terrain Rammed . | . . . . Walls Destroyed . | . . . . Machines Disabled . | . . . . Actions | -11 -10 -10 -10 --------- Run | Yrd Mat Min Sub Total 1296 | 56 373 584 283 Wait 66 | . 39 11 16 Move 1069 | 40 287 517 225 Hop . | . . . . Pick Up 25 | 9 5 6 5 Fast Attach 7 | 3 2 . 2 Attach 11 | 3 1 4 3 Detach 3 | . . . 3 Swap 12 | . 4 2 6 Drop 11 | . 5 . 6 Fire 77 | . 22 38 17 Melee . | . . . . Ram . | . . . . Kick 6 | 1 5 . . Crush 9 | . 3 6 . Escape Stasis . | . . . . Rewire . | . . . . Trap . | . . . . Miscellaneous . | . . . . Route ------- -11/Scrapyard -10/Materials (discovered 2 exits: [*Min] / [*Sub]) -10/Mines (discovered 2 exits: [*Exi] / [*Sub]) -10/Subcaves (discovered 1 exit: [*Mat]) History --------- Turn | Location | Event 31 | -11/Scrapyard | Discovered new exit (range 15) 59 | -11/Scrapyard | Entered Materials 63 | -10/Materials | Discovered new exit (range 4) 210 | -10/Materials | Discovered new exit (range 6) 322 | -10/Materials | Build established: Mutant 580 | -10/Materials | Entered Mines 614 | -10/Mines | Escorted by a lone wolf Derelict 772 | -10/Mines | Assembled infested the area 832 | -10/Mines | Core integrity fell below 50% 963 | -10/Mines | Learned 2 Materials zone layouts 1185 | -10/Mines | A weapon hastily lodged in a ceiling crevice suddenly fell to the ground 1334 | -10/Mines | Deemed a non-threat by the Exiles lab entrance 1334 | -10/Mines | Discovered new exit (range 5) 1429 | -10/Mines | Received a Rocket Launcher from a helpful Derelict 1515 | -10/Mines | Discovered new exit (range 11) 1536 | -10/Mines | Entered Subcaves 1537 | -10/Subcaves | Approached by a straggling Scientist 1715 | -10/Subcaves | Core integrity fell below 20% 1754 | -10/Subcaves | Learned location of Mines (-10) 1920 | -10/Subcaves | Discovered new exit (range 8) 1946 | -10/Subcaves | Destroyed by JH-IE8(R) with Subdweller Laser Last Messages --------------- 01795_ Dropped Assault Rifle. 01797_ Acquired Sub. Beam Cannon. 01800_ Dropped Aluminum Leg. 01801_ Acquired Sub. Beam Cannon. 01803_ Searching scrap... 01803_ Found Sub. Monowheel. 01803_ Found Sub. Optics. 01803_ Found 32 Matter. 01804_ Acquired 20 matter. 01805_ System corrupted: Matter fused (-8). 01806_ Acquired 8 matter. 01807_ Subatomizers dissect the Sub. Monowheel. 01818_ Subatomizers dissect the Barrage Gun. 01850_ System corrupted: Matter fused (-9). 01894_ Subatomizers dissect the Sub. Power Source. 01920_ EXIT=FOUND 01931_ System corrupted: Matter fused (-8). 01943_ M2-X8T(R) knocked back. 01943_ Lgt. Nuclear Core destroyed. Map ----- +----------------------------------------------------+ | ????????????????????????????# " # "" ######## | | ????????????????????????????# " ## "" ######? | | ???????????????????????????## # "#"### " # #? | | ??????????????????????????##"" #"######" ##? | | ??????????????????????????#"#"" ### ## "# "#? | | ??????????????????????????##" ######" "## | | ??????????????????????????# " #### ### " | | ??????????????????????????## ###?## | | ???????????????????????????# #??#% #### | | ???????????????????????????# ##??# ## | | ???????????????????????????# #??# | | ???????????????????????????# #??## | | ?????????????????????###??## ##??# %## | | ?????????????????????# #??# #??# ### | | ????????????????????## #??# #?# # ##?## | | ????????????????????# #?## # #### | | ????????????????????# ### ### #?# | | ???????????????????## ### ##?## ## | | ??????????????????## ## #???## ####? | | ??????????????????# #??## #???? | | ??????????????????# ## #?### #???? | | ??????????????????# ### ## ##?# ##??? | | ??????????????????## #?# ##??# ##?? | | ???????????????????# ## #?# #?### ##? | | ???????????????????# ####R% #?# ## #? | | ??????????????????## ###@ #?# ## # | | ???????????????#### * ###R #### ##### # | | ???????????????# ! ## %R### ## ###### ## | | ????????????# ## %??# ## ####? | | ?????????# < = % ### ?## ##?? | | ??????= # #! # ######?# ## ##? | | ???? ?#### ###???????????# ## #? | | ????? ?????# #?????????????# ### # | | ????? #???????" ????????????## ####### | | ????? ????????? " ???????????## #?????? | | ???????????????? #####??????????# ## #?????? | | ???????????????? #???????????????# ## #?????? | | ???????????????? ????????????????## ####?????? | | ??????????????? ??????????????????## # #???????? | | ???????????????????????????????????## #???????? | | ????????????????????????????????????# #???????? | | ????????????????????????????????????## ##???????? | | ????????????????????????????????????## ##???????? | | ???????????????????????????????????## ##??????? | | ???????????????????????????????????# ##?????? | | ???????????????????????????????????# #?????? | | ???????????????????????????????????## ##?????? | | ????????????????????????????????????## #??????? | | ?????????????????????????????????????## ##??????? | | ??????????????????????????????????????# ##???????? | +----------------------------------------------------+ Best States ------------- Heat Dissipation 35 Energy Generation 14 Energy Capacity 250 Matter Stores 300 Matter Capacity 300 Sight Range 16 Terrain Scan Density 10 Evasion (%) 55 Recoil Reduction 2 Item Schematics ----------------- None Robot Schematics ------------------ None Fabricated ------------ Nothing Repaired ---------- Nothing Studied --------- None Alien Tech Used ----------------- None Achievements -------------- None Challenges ------------ None Game ------ Seed TiamatHoverTorch Manual? 0 Play Time 00:11:19 Cumulative 430.0 hours Start 2025.12.27 @ 23:27:34 End 2025.12.27 @ 23:38:45 Sessions 1 Manual Loads 0 Difficulty Rogue Special Mode None Game No. 202 Rogue 202 Adventurer 0 Explorer 0 Win Type - Total 13 Types 9/0/2/0/0/0/0/1/0/1 Lore% 84 Gallery% 82 Achievement% 60 Wizard Run 0 Options --------- Layout 1 ASCII 0 Keyboard 0 Movement Mouse Keybinds 0 Fullscreen 1 Font 24/Smallcaps Map View 50x35 Zoom Use 0% Tactical HUD 1 Map Filters NONE Filters NONE Steam 1 RUN: 98d7cf4b-7f4a-4f72-aa39-42cb3b34982b